Cogmind - Beta 11.1 @@@ ROGUE MODE // 2022.05.08 @ 14:24:50 Player: Infomantis Result: Self-destructed Performance ------------- Evolutions (1) 500 Regions Visited (5) 1000 Robots Destroyed (27) 135 Value Destroyed (511) 511 Prototype IDs (2) 40 Alien Tech Used (0) 0 Bonus (135) 135 TOTAL SCORE: 2321 Bonus ------- Follower Combat Kills 148 Friendly Fire -13 Cogmind --------- Core Integrity 183/400 Matter 300/300 Energy 160/160 System Corruption 0% Temperature Cool (0) Movement Treading (160) Location -9/Exiles Parts ------- > --- POWER (1) -------- Light Nuclear Core > --- PROPULSION (2) --- Light Treads Light Treads > --- UTILITY (4) ------ Heat Sink Large Storage Unit Seismic Detector Seismic Detector > --- WEAPON (2) ------- Light Assault Rifle > --- INVENTORY (15) --- Light Treads Wheel Wheel Improved Heat Sink Disposable Heat Sink Medium Storage Unit Compact Matter Pod (150) Structural Scanner Improved Terrain Scanner Transport Network Coupler Hacking Suite Hacking Suite Mini Grenade Launcher Plasma Flamer Peak State ------------ > --- POWER ------------ Light Nuclear Core > --- PROPULSION ------- Light Treads Light Treads > --- UTILITY ---------- Large Storage Unit Seismic Detector Seismic Detector > --- WEAPON ----------- Particle Gun Assault Rifle > --- INVENTORY -------- Light Nuclear Core Light Nuclear Core Aluminum Leg Wheel Wheel Improved Heat Sink Medium Storage Unit Compact Matter Pod Structural Scanner Improved Terrain Scanner Transport Network Coupler Hacking Suite Hacking Suite Assault Rifle Plasma Flamer [Rating: 14] Favorites ----------- Power Light Nuclear Core Engine Ion Engine Power Core Light Nuclear Core Propulsion Light Treads Treads Light Treads Leg Aluminum Leg Wheel Wheel Utility Seismic Detector Device Seismic Detector Storage Large Storage Unit Weapon Assault Rifle Energy Gun Particle Gun Ballistic Gun Assault Rifle Build | -11 -10 -10 -9 -9 -9 ------- Run | Scr Mat Min Mat Min Exi Slots Evolved 2 | . . . 2 . . Power . | . . . . . . Propulsion . | . . . . . . Utility 2 | . . . 2 . . Weapon . | . . . . . . Parts Attached 27 | 8 6 3 9 1 . Power 5 | 1 1 1 1 1 . Engine 2 | 1 1 . . . . Core 3 | . . 1 1 1 . Reactor . | . . . . . . Propulsion 7 | 2 1 . 4 . . Treads 5 | 2 1 . 2 . . Leg 1 | . . . 1 . . Wheel 1 | . . . 1 . . Hover . | . . . . . . Flight . | . . . . . . Utility 5 | 2 1 . 2 . . Device 3 | 1 . . 2 . . Storage 2 | 1 1 . . . . Processor . | . . . . . . Hackware . | . . . . . . Protection . | . . . . . . Artifact . | . . . . . . Weapon 10 | 3 3 2 2 . . Energy Gun 2 | 1 . 1 . . . Energy Cannon . | . . . . . . Ballistic Gun 8 | 2 3 1 2 . . Ballistic Cannon . | . . . . . . Launcher . | . . . . . . Special Weapon . | . . . . . . Impact Weapon . | . . . . . . Slashing Weapon . | . . . . . . Piercing Weapon . | . . . . . . Special Melee Weapon . | . . . . . . Unidentified Prototypes . | . . . . . . Parts Lost 8 | . 1 . 6 1 . Power 3 | . 1 . 2 . . Propulsion 2 | . . . 2 . . Utility . | . . . . . . Weapon 3 | . . . 2 1 . Highest Loss Streak 3 | . 1 . 3 1 . To Critical Strikes 1 | . . . . 1 . Average Slot Usage (%) 94 | . 98 100 85 88 88 Engine 5 | . 13 4 . . . Core 6 | . . 9 9 11 11 Treads 24 | . 27 28 14 22 22 Device 20 | . 14 14 24 33 33 Storage 12 | . 14 14 11 11 11 Energy Gun 1 | . . 1 5 . . Ballistic Gun 21 | . 28 26 15 11 11 Naked Turns . | . . . . . . Heaviest Build 32 | 14 30 31 32 31 29 Greatest Support 40 | 40 40 40 40 40 40 Greatest Overweight (x) 3 | . 1 . 3 . . Average Overweight (x) . | . . . . . . Largest Inventory Capacity 15 | 8 15 15 15 15 15 Average Capacity 13 | 7 11 15 15 15 15 Most Carried 15 | 8 15 15 15 14 14 Average Carried 11 | 5 9 14 13 12 14 Final Capacity 15 | 8 15 15 15 15 15 Final Carried 15 | 7 15 15 13 14 14 Class Distribution -------------------- 66% | Mutant 33% | Scavenger-Mutant Dominant Class ---------------- Mutant | -10/Materials Mutant | -10/Mines Scavenger-Mutant | -9/Materials Scavenger-Mutant | -9/Mines Scavenger-Mutant | -9/Exiles Resources | -11 -10 -10 -9 -9 -9 ----------- Run | Scr Mat Min Mat Min Exi Matter Collected 979 | 326 184 247 209 13 . Remotely . | . . . . . . Salvage Created 704 | 101 233 101 269 . . Parts 58 | 6 18 12 22 . . Haulers Intercepted . | . . . . . . Recyclers Shooed 1 | . . . 1 . . Parts Field Recycled . | . . . . . . Retrieved Matter . | . . . . . . Parts Self-Destructed . | . . . . . . Prevented . | . . . . . . Kills | -11 -10 -10 -9 -9 -9 ------- Run | Scr Mat Min Mat Min Exi Combat Hostiles Destroyed 20 | . 6 4 10 . . Guns 20 | . 6 4 10 . . Classes Destroyed 7 | 2 4 . 1 . . Tunneler 3 | 2 . . 1 . . Recycler 1 | 1 . . . . . Operator 2 | . 2 . . . . Watcher 1 | . 1 . . . . Swarmer 13 | . 3 3 7 . . Grunt 5 | . 3 1 1 . . Sentry 2 | . . . 2 . . Best Kill Streak 10 | 3 3 3 10 . . Combat Bots Only 10 | . 3 3 10 . . Max Kills in Single Turn 2 | 1 1 1 2 . . Gunslinging 1 | . . . 1 . . Exploded . | . . . . . . Melee . | . . . . . . Uniques/NPCs Destroyed . | . . . . . . Combat | -11 -10 -10 -9 -9 -9 -------- Run | Scr Mat Min Mat Min Exi Damage Taken 1481 | . 541 132 730 78 . Core 359 | . 95 47 192 25 . Absorbed by Shields . | . . . . . . Core Remaining (%) 71 | 100 . 43 . . . Volleys Fired 87 | 12 37 7 29 2 . Largest 2 | 2 2 2 2 2 . Hottest 85 | 60 40 40 85 40 . Shots Fired 171 | 24 75 14 54 4 . Gun 171 | 24 75 14 54 4 . Cannon . | . . . . . . Launcher . | . . . . . . Special . | . . . . . . Kinetic 150 | 22 75 14 35 4 . Thermal 19 | . . . 19 . . Explosive . | . . . . . . Electromagnetic 2 | 2 . . . . . Robot Hit Streak 17 | 8 17 6 7 . . Robot Miss Streak 5 | 1 3 2 5 4 . Penetration Max . | . . . . . . Secondary Targets 5 | . . 1 4 . . Max Gunslinging Chain 1 | . . 1 1 . . Shots Hit Robots 103 | 18 49 9 27 . . Core Hits 41 | 5 17 4 14 1 . Critical Kills 1 | . . 1 . . . Critical Parts Destroyed 1 | 1 . . . . . Critical Strikes 4 | 1 . 1 2 . . Burn 2 | . . . 2 . . Destroy 2 | 1 . 1 . . . Melee Attacks . | . . . . . . Impact . | . . . . . . Slashing . | . . . . . . Piercing . | . . . . . . Sneak Attacks . | . . . . . . Combat Hostiles . | . . . . . . Follow-up Attacks . | . . . . . . Damage Inflicted 1250 | 181 594 85 377 13 . Guns 1239 | 181 583 85 377 13 . Cannons . | . . . . . . Explosions . | . . . . . . Melee . | . . . . . . Ramming 11 | . 11 . . . . Kinetic 1046 | 157 583 85 208 13 . Thermal 169 | . . . 169 . . Explosive . | . . . . . . Electromagnetic 24 | 24 . . . . . Impact . | . . . . . . Slashing . | . . . . . . Piercing . | . . . . . . Highest Corruption 1 | . 1 1 . . . Average Corruption 1 | . 1 1 . . . Corruption Purged . | . . . . . . Corruption Blocked . | . . . . . . Effects 8 | . 3 5 . . . Message Errors 3 | . . 3 . . . Matter Fused 1 | . 1 . . . . Energy Discharges 3 | . 1 2 . . . Misfires 1 | . 1 . . . . Overload Shots . | . . . . . . Overflow Damage . | . . . . . . Projectiles . | . . . . . . Explosions . | . . . . . . Melee . | . . . . . . Knockbacks . | . . . . . . Impact . | . . . . . . Kinetic . | . . . . . . Secondary . | . . . . . . Self-Inflicted Damage . | . . . . . . Shots . | . . . . . . Rammed 1 | . 1 . . . . Targets Rammed 1 | . 1 . . . . Kicked . | . . . . . . Crushed . | . . . . . . Highest Temperature 335 | . 27 8 335 . . Average Temperature 135 | . 9 3 178 . . Received Heat Transfer 438 | . 270 . 168 . . Effects 4 | . . . 4 . . Energy Bleed 2 | . . . 2 . . Interference 1 | . . . 1 . . Matter Decay 1 | . . . 1 . . Siege Activations . | . . . . . . Robots Corrupted . | . . . . . . Combat Hostiles . | . . . . . . Parts Fried . | . . . . . . Impact Corruptions . | . . . . . . Robots Melted . | . . . . . . Combat Hostiles . | . . . . . . Parts Melted 2 | . . . 2 . . Heat Transferred 555 | . . . 555 . . Parts Sabotaged . | . . . . . . Parts Stolen . | . . . . . . Parts Stripped . | . . . . . . Power Chain Reactions . | . . . . . . Missiles Intercepted . | . . . . . . Alert | -11 -10 -10 -9 -9 -9 ------- Run | Scr Mat Min Mat Min Exi Peak Influence 381 | 15 166 240 381 257 . Initial 148 | . 9 64 27 148 . Average 122 | 4 63 129 203 226 . Maximum Alert Level 1 | . . 1 1 1 . Low Security (%) 70 | 100 100 80 44 7 . Level 1 29 | . . 19 55 92 . Level 2 . | . . . . . . Level 3 . | . . . . . . Level 4 . | . . . . . . Level 5 . | . . . . . . High Security . | . . . . . . Max Security . | . . . . . . Squads Dispatched 4 | . 2 . 2 . . Investigation 1 | . . . 1 . . Extermination . | . . . . . . Reinforcement 3 | . 2 . 1 . . Assault . | . . . . . . Garrison . | . . . . . . Intercept . | . . . . . . Searches Triggered . | . . . . . . Construction Impeded . | . . . . . . Haulers Reinforced . | . . . . . . Active Scanning Responses . | . . . . . . Cargo Convoy Interrupts . | . . . . . . Stealth | -11 -10 -10 -9 -9 -9 --------- Run | Scr Mat Min Mat Min Exi Distress Signals 7 | . 2 . 5 . . Communications Jammed . | . . . . . . Distress Signals . | . . . . . . Times Spotted 57 | . 13 17 24 3 . Peak Tracking Total 12 | . 7 12 8 3 . Tactical Retreats 2 | . . . 2 . . Traps | -11 -10 -10 -9 -9 -9 ------- Run | Scr Mat Min Mat Min Exi Traps Triggered 4 | . 4 . . . . Indirectly . | . . . . . . Trap Hack Attempts . | . . . . . . Triggered . | . . . . . . Disarmed . | . . . . . . Reprogrammed . | . . . . . . Reused . | . . . . . . Traps Extracted . | . . . . . . Installed . | . . . . . . Triggered . | . . . . . . Machines | -11 -10 -10 -9 -9 -9 ---------- Run | Scr Mat Min Mat Min Exi Machines Disabled 2 | . . . . 2 . Max in Single Turn 1 | . . . . 1 . Machines Sabotaged . | . . . . . . Garrisons Compromised . | . . . . . . Overloaded Fab Kills . | . . . . . . Hacking | -11 -10 -10 -9 -9 -9 --------- Run | Scr Mat Min Mat Min Exi Machines Accessed 8 | . 5 . 2 1 . Terminals 6 | . 5 . 1 . . Fabricators . | . . . . . . Repair Stations . | . . . . . . Recycling Units . | . . . . . . Scanalyzers 1 | . . . 1 . . Garrison Access . | . . . . . . Total Hacks 24 | . 16 . 7 1 . Successful 14 | . 8 . 5 1 . Failed 10 | . 8 . 2 . . Catastrophic . | . . . . . . Database Lockouts . | . . . . . . Manual 3 | . 3 . . . . Terminals 19 | . 16 . 3 . . Fabricators . | . . . . . . Repair Stations . | . . . . . . Recycling Units . | . . . . . . Scanalyzers 4 | . . . 4 . . Garrison Access . | . . . . . . Terminal Hacks 8 | . 6 . 1 1 . Prototype ID Bank 2 | . 2 . . . . Open Door 1 | . . . . 1 . Branch Access Points 2 | . 1 . 1 . . Terminal Index 1 | . 1 . . . . Registered Prototypes 1 | . 1 . . . . Zone Layout 1 | . 1 . . . . Fabricator Hacks . | . . . . . . Repair Station Hacks . | . . . . . . Recycling Unit Hacks . | . . . . . . Scanalyzer 4 | . . . 4 . . Insert Component 2 | . . . 2 . . Analyze 2 | . . . 2 . . Garrison Access Hacks . | . . . . . . Unauthorized Hacks 2 | . 2 . . . . Terminals 2 | . 2 . . . . Botnet 1 | . 1 . . . . Operators 1 | . 1 . . . . Fabricators . | . . . . . . Repair Stations . | . . . . . . Recycling Units . | . . . . . . Scanalyzers . | . . . . . . Garrison Access . | . . . . . . Data Cores Recovered . | . . . . . . Used . | . . . . . . Hacking Detections 6 | . 4 . 2 . . Full Trace Events 1 | . . . 1 . . Feedback Events . | . . . . . . Feedback Blocked . | . . . . . . Robot Schematics Acquired . | . . . . . . Robots Built . | . . . . . . Authchips . | . . . . . . Time . | . . . . . . Total Robot Build Rating . | . . . . . . Part Schematics Acquired 2 | . . . 2 . . Parts Built . | . . . . . . Authchips . | . . . . . . Time . | . . . . . . Total Part Build Rating . | . . . . . . Parts Repaired . | . . . . . . Time . | . . . . . . Parts Recycled . | . . . . . . Recycled Matter . | . . . . . . Retrieved Matter . | . . . . . . Retrieved Components . | . . . . . . Parts Scanalyzed 2 | . . . 2 . . Part Schematics Acquired 2 | . . . 2 . . Parts Damaged . | . . . . . . Bothacking | -11 -10 -10 -9 -9 -9 ------------ Run | Scr Mat Min Mat Min Exi Used RIF Installer . | . . . . . . Robots Hacked . | . . . . . . Non-combat . | . . . . . . Combat . | . . . . . . Robot Hacks Applied . | . . . . . . Relay Couplers Released . | . . . . . . Fabnet Peak Effective % . | . . . . . . Robots Rewired . | . . . . . . Allies Hacked . | . . . . . . Hacks Repelled . | . . . . . . Allies | -11 -10 -10 -9 -9 -9 -------- Run | Scr Mat Min Mat Min Exi Total Allies 4 | . . 1 . 3 . Largest Group 3 | . . 1 . 3 . Highest-Rated Group 40 | . . 31 . 40 . Highest-Rated Ally 31 | . . 31 . 16 . Total Orders . | . . . . . . Ally Attacks 37 | . . 18 . 19 . Total Damage 507 | . . 298 . 209 . Kills 8 | . . 4 . 4 . Allies Corrupted . | . . . . . . Allies Melted . | . . . . . . Intel | -11 -10 -10 -9 -9 -9 ------- Run | Scr Mat Min Mat Min Exi Robot Analysis Total . | . . . . . . Derelict Logs Recovered . | . . . . . . Drone Launches . | . . . . . . Drone Recoveries . | . . . . . . Exploration | -11 -10 -10 -9 -9 -9 ------------- Run | Scr Mat Min Mat Min Exi Turns Passed 2291 | 186 742 513 261 406 183 Spaces Moved 1207 | 90 374 280 103 246 114 Core 9 | 9 . . . . . Treads 1191 | 81 374 280 96 246 114 Legs . | . . . . . . Wheels 7 | . . . 7 . . Hover . | . . . . . . Flight . | . . . . . . Fastest Speed 50 | 50 160 160 110 160 160 Average Speed 159 | 149 160 160 158 160 160 Slowest Speed 240 | 160 240 160 240 160 160 Overloaded Moves . | . . . . . . Propulsion Burnouts . | . . . . . . Robots Hopped . | . . . . . . Cave-ins Triggered . | . . . . . . Exploration Rate (%) 41 | 6 72 67 18 48 40 Regions Visited 5 Branch Regions 3 Pre-discovered Areas 1 | . . . . 1 . Known Exits Taken 2 | . 1 . 1 . . Unknown Exits Taken 3 | 1 . 1 . 1 . Scrap Searched 3 | . . 2 . 1 . Spaces Dug . | . . . . . . Terrain Destroyed . | . . . . . . Melee . | . . . . . . Projectile . | . . . . . . AOE . | . . . . . . Terrain Rammed . | . . . . . . Walls Destroyed . | . . . . . . Machines Disabled . | . . . . . . Actions | -11 -10 -10 -9 -9 -9 --------- Run | Scr Mat Min Mat Min Exi Total 1412 | 117 444 336 146 255 114 Wait 54 | . 14 33 2 5 . Move 1202 | 89 373 279 102 245 114 Hop . | . . . . . . Pick Up 27 | 8 9 6 2 2 . Fast Attach 16 | 6 3 2 5 . . Attach 6 | 1 . . 4 1 . Detach . | . . . . . . Swap 5 | 1 3 1 . . . Drop 14 | . 4 8 2 . . Fire 87 | 12 37 7 29 2 . Melee . | . . . . . . Ram . | . . . . . . Kick . | . . . . . . Crush 1 | . 1 . . . . Escape Stasis . | . . . . . . Rewire . | . . . . . . Trap . | . . . . . . Miscellaneous . | . . . . . . Route ------- -11/Scrapyard -10/Materials (discovered 3 exits: *Mat x2 / *Min) -10/Mines (discovered 2 exits: *Mat x2) -9/Materials (discovered 2 exits: *Min x2) -9/Mines (discovered 2 exits: [*Mat] / [*Exi]) -9/Exiles (discovered 1 exit: [*Min]) History --------- Turn | Location | Event 13 | -11/Scrapyard | Discovered new exit (range 15) 187 | -11/Scrapyard | Entered Materials 317 | -10/Materials | Build established: Mutant 443 | -10/Materials | Discovered new exit (range 7) 547 | -10/Materials | Discovered new exit (range 16) 768 | -10/Materials | Discovered new exit (range 16) 806 | -10/Materials | Identified exit to Mines 929 | -10/Materials | Entered Mines 932 | -10/Mines | Received a Mining Laser from a helpful Derelict 932 | -10/Mines | Met a Derelict bent on vengeance 1051 | -10/Mines | Discovered new exit (range 3) 1173 | -10/Mines | A weapon hastily lodged in a ceiling crevice suddenly fell to the ground 1422 | -10/Mines | Assembled infested the area 1424 | -10/Mines | Discovered new exit (range 14) 1440 | -10/Mines | Core integrity fell below 50% 1442 | -10/Mines | Entered Materials 1442 | -9/Materials | Evolved 2 slots: Utility x2 1623 | -9/Materials | Lost 3 parts (1p2w) 1625 | -9/Materials | Destroyed 10 combat bots 1655 | -9/Materials | Identified exit to Mines 1703 | -9/Materials | Entered Mines 1709 | -9/Mines | Assisted by bots powering up and referring to "LRC-V3" 1723 | -9/Mines | Core integrity fell below 50% 1819 | -9/Mines | Build established: Scavenger-Mutant 1840 | -9/Mines | Learned location of Storage (-7) 1930 | -9/Mines | Met a Derelict who couldn't figure out how to use a Trap Extractor 1960 | -9/Mines | Discovered new exit (range 12) 2029 | -9/Mines | Discovered new exit (range 15) 2103 | -9/Mines | Deemed a non-threat by the Exiles lab entrance 2109 | -9/Mines | Entered Exiles 2109 | -9/Exiles | Found Exiles lab abandoned 2134 | -9/Exiles | Discovered new exit (range 15) 2292 | -9/Exiles | Self-destructed Last Messages --------------- Sealed Doors opened. 01930_ AH-VME(g): "So I found this thing but I have no idea how to use it. And who the hell trapped this place to begin with?!" 01930_ AH-VME(g): "I give up! Here you try, I'm outta here before something nasty happens..." 01930_ Tosses Imp. Trap Extractor to the ground. 01934_ K-01 Serf collects debris. 01960_ EXIT=FOUND 01966_ AH-VME(g) exits level. 02029_ EXIT=FOUND 02043_ Searching scrap... 02043_ Found Mni. Grenade Launcher. 02043_ Found Disposable Heat Sink. 02043_ Found 15 Matter. 02046_ Acquired Mni. Grenade Launcher. 02049_ Acquired Disposable Heat Sink. 02103_ "No threat detected, you may enter." LOCATION=UNKNOWN GOAL=ESCAPE 02134_ EXIT=FOUND Map ----- +----------------------------------------------------+ | | | | | | | | | | | | | | | | | | | | | | | | | | | | | | | | | | | | | | | | | | | ??????????????????????#########??????????????????? | | ??????????????????????# #??????????????????? | | ??????????????????????# #??????????????????? | | ??????????????????????# #??????????????????? | | ??????????????????????# @ X#??????????????????? | | ??????????????????????## ##??????????????????? | | ??????????????????????#X #???????????????????? | | ??????????????????????## #???????????????????? | | ???????????????????????# #???????????????????? | | ???????????????????????# #???###?????????????? | | ???????????????????????# #??"""""????????????? | | ???????????????????????# ## """????????????? | | ???????????????????????# X""????????????? | | ???????????????????????# ## """????????????? | | ?????????????????####??# #??"""""????????????? | | ????????????????""""""?# #???###?????????????? | | ????????????????"""" ## #???????????????????? | | ???????????????#""X" #???????????????????? | | ???????????????#" #???????????????????? | | ???????????????#" ## #???????????????????? | | ???????????????#""""""?# #?#########?????????? | | ???????????????##"###??# #?#"""""""#?????????? | | ???????????????????????# #?#"""""""#?????????? | | ???????????????????????# #?#"""""""#?????????? | | ??????????????????????## ###"" """"#?????????? | | ??????????????????????#" """"#?????????? | | ??????????????????????#" """#?????????? | | ??????????????????????#" """#?????????? | | ??????????????????????#" """#?????????? | +----------------------------------------------------+ Best States ------------- Heat Dissipation 38 Energy Generation 14 Energy Capacity 250 Matter Stores 300 Matter Capacity 300 Sight Range 16 Terrain Scan Density 10 Evasion (%) 40 Recoil Reduction 2 Item Schematics ----------------- Hacking Suite | -9/Materials | Scanalyzed Plasma Flamer | -9/Materials | Scanalyzed Robot Schematics ------------------ None Fabricated ------------ Nothing Alien Tech Used ----------------- None Achievements -------------- None Challenges ------------ None Game ------ Seed DisruptorThermalBoosters Manual? 0 Play Time 00:14:26 Cumulative 210.6 hours Start 2022.05.08 @ 14:08:38 End 2022.05.08 @ 14:24:50 Sessions 1 Manual Loads 0 Difficulty Rogue Special Mode None Game No. 153 Rogue 130 Adventurer 6 Explorer 17 Win Type - Total 15 Types 9/0/2/1/0/1/1/1/0 Lore% 92 Gallery% 90 Achievement% 68 Wizard Run 0 Options --------- ASCII 0 Keyboard 0 Movement Numpad Keybinds 0 Fullscreen 1 Font 12/Fuzzy Map View 83x54 Tactical HUD 1 Map Filters NONE Filters NONE Steam 1 RUN: 8a265834-8c8a-4ee0-a3a3-1386b942ce12